Workbook

Sheet CLASSIFICAÇÃO GERAL 2022
A1: CLASSIFICAÇÃO GERAL ACPA – TEMPORADA VERÃO 2023 DOMINGO
A2: COLEIRO FIBRA | B2: Pássaro | C2: Proprietário | D2: Origem | E2: Pontos
A3: POSIÇÃO | B3: NOME DO PÁSSARO | C3: NOME DO PROPRIETÁRIO | D3: ORIGEM (CIDADE) | E3: PONTUAÇÃO
A4: 1º | B4: IMPÉRIO | C4: LUIZINHO | D4: PETRÓPOLIS | E4: =29+29+29+20+23+28+29+30+27+28+28 -> 300
A5: 2º | B5: PITBULL | C5: FREDERICO SIMAS | D5: PETRÓPOLIS | E5: =30+28+27+27+27+28+28+22+24 -> 241
A6: 3º | B6: VENOM | C6: MURILO | D6: TRÊS RIOS | E6: =26+25+26+24+21+23+28+25+11 -> 209
A7: 4º | B7: CARIOQUINHA | C7: JONAS | D7: TRÊS RIOS | E7: =25+27+29+27+30+29+29 -> 196
A8: 5º | B8: CABALA | C8: LEVI | D8: TRÊS RIOS | E8: =20+29+24+26+30+23+15 -> 167
A9: 6º | B9: PICA-PAU | C9: ADÃO | D9: TRÊS RIOS | E9: =13+13+21+11+20+18+26+17+15 -> 154
A10: 7º | B10: VINTE DOIS | C10: ALISSON | D10: TRÊS RIOS | E10: =21+27+19+22+22+21 -> 132
A11: 8º | B11: TREM | C11: TAIDISON | D11: TRÊS RIOS | E11: =20+22+19+22+23+14 -> 120
A12: 9º | B12: COMETA | C12: JOÃO MARCOS | D12: AREAL | E12: =25+28+24+15+22 -> 114
A13: 10º | B13: PSG | C13: BETINHO | D13: TRÊS RIOS | E13: =22+22+22+17+16+13 -> 112
A14: 11º | B14: COYOTE | C14: GABRIEL | D14: MIRACEMA/TRÊS RIOS | E14: =28+11+19+14+23 -> 95
A15: 12º | B15: LOBO MAU | C15: RAFAEL LAMBARI | D15: PETRÓPOLIS | E15: =29+15+25+26 -> 95
A16: 13º | B16: BONES | C16: EDIWILSON | D16: PETRÓPOLIS | E16: =28+25+30 -> 83
A17: 14º | B17: ALUCINADO | C17: BERNARDO | D17: ANTA | E17: =24+23+18+17 -> 82
A18: 15º | B18: CASCAVEL | C18: BRUNO BRANCO | D18: PETRÓPOLIS | E18: =30+29+22 -> 81
A19: 16º | B19: FAIXA PRETA | C19: PAULO HENRIQUE | D19: PETRÓPOLIS | E19: =30+24+25 -> 79
A20: 17º | B20: DIM | C20: UELINTON | D20: TRÊS RIOS | E20: =24+23+27 -> 74
A21: 18º | B21: TALISMÃ | C21: REGINALDO | D21: PETRÓPOLIS | E21: =16+21+19+15 -> 71
A22: 19º | B22: SUPREMO | C22: JOÃOZINHO | D22: BEMPOSTA | E22: =26+23+19 -> 68
A23: 20º | B23: MOLEQUE JR | C23: WELLINGTON ARGON | D23: PETRÓPOLIS | E23: =24+25+17 -> 66
A24: 21º | B24: TORPEDO | C24: DAVISON | D24: TRÊS RIOS | E24: =26+19+21 -> 66
A25: 22º | B25: BIRO BIRO | C25: PAULINHO | D25: TRÊS RIOS | E25: =16+15+13+20 -> 64
A26: 23º | B26: RAGNAR | C26: KLEBER | D26: AREAL | E26: =26+20+18 -> 64
A27: 24º | B27: MALUQUINHO | C27: MURILO | D27: AREAL | E27: =25+22+14 -> 61
A28: 25º | B28: SR MIAGUI | C28: NATHAN | D28: LEVY GASPARIAN | E28: =24+18+19 -> 61
A29: 26º | B29: NEGO | C29: MÁRCIO | D29: TRÊS RIOS | E29: =30+30 -> 60
A30: 27º | B30: PODEROSO CHEFINHO | C30: BRUNO BRANCO | D30: PETRÓPOLIS | E30: =17+21+21 -> 59
A31: 28º | B31: SEDEX | C31: NATHAN | D31: LEVY GASPARIAN | E31: =20+19+18 -> 57
A32: 29º | B32: GOKUN | C32: MATHEUS/LUCAS | D32: JUIZ DE FORA | E32: =30+26 -> 56
A33: 30º | B33: TÔ LOUCO | C33: VINÍCIUS | D33: TRÊS RIOS | E33: =27+27 -> 54
A34: 31º | B34: BRASILEIRINHO | C34: GUSTAVO | D34: BEMPOSTA | E34: =29+24 -> 53
A35: 32º | B35: DESTRUIDOR | C35: VALDECIR | D35: PETRÓPOLIS | E35: =23+29 -> 52
A36: 33º | B36: SAGAT | C36: HERALDO | D36: PETRÓPOLIS | E36: =23+26 -> 49
A37: 34º | B37: CHACAL | C37: ROMÁRIO | D37: PETRÓPOLIS | E37: =24+23 -> 47
A38: 35º | B38: TUBARÃO | C38: MAURO JR. | D38: TRÊS RIOS | E38: =15+16+14 -> 45
A39: 36º | B39: FERA | C39: JESSÉ JÚNIOR | D39: TRÊS RIOS | E39: =27+17 -> 44
A40: 37º | B40: CAMISA 10 | C40: JONAS | D40: TRÊS RIOS | E40: =22+17 -> 39
A41: 38º | B41: KOWALSKI | C41: RICHARDSON | D41: LEVY GASPARIAN | E41: =23+16 -> 39
A42: 39º | B42: MITO | C42: LUIZINHO | D42: PETRÓPOLIS | E42: =18+20 -> 38
A43: 40º | B43: RD | C43: ROBSON CAMPOS | D43: PETRÓPOLIS | E43: =20+16 -> 36
A44: 41º | B44: FLECHA | C44: CLODOALDO | D44: TRÊS RIOS | E44: =24+11 -> 35
A45: 42º | B45: GLORIOSO | C45: ISAÍAS | D45: TRÊS RIOS | E45: =15+16 -> 31
A46: 43º | B46: BICHO DOIDO | C46: EDUARDO | D46: TRÊS RIOS | E46: =18+12 -> 30
A47: 44º | B47: CAPITÃO GANCHO | C47: MARCUS VINICIUS | D47: SÃO JOÃO DEL REI | E47: 30
A48: 45º | B48: CASSINO | C48: RAFAEL | D48: NITERÓI | E48: 30
A49: 46º | B49: SCOOBY | C49: BRUNO MUNIZ | D49: SAPUCAIA | E49: 30
A50: 47º | B50: AGRO | C50: REINALDO/LI | D50: BARBACENA/MG | E50: 29
A51: 48º | B51: BICO DE OURO | C51: KLEBER | D51: AREAL | E51: =11+18 -> 29
A52: 49º | B52: GRÃO VIZIR | C52: GABRIEL/ALEX LAMA | D52: PARAIBA DO SUL | E52: 28
A53: 50º | B53: OROCHI | C53: NATHAN | D53: LEVY GASPARIAN | E53: 28
A54: 51º | B54: REALEZA | C54: VINÍCIUS | D54: SÃO JOSÉ | E54: 28
A55: 52º | B55: CARIOCA | C55: FABIANO | D55: JUIZ DE FORA | E55: 27
A56: 53º | B56: MAVERICK | C56: MARCÃO | D56: JUIZ DE FORA | E56: 27
A57: 54º | B57: CARA PRETA | C57: DIEGO | D57: MATIAS BARBOSA | E57: 26
A58: 55º | B58: CARIOCA | C58: FABIANO | D58: JUIZ DE FORA | E58: 26
A59: 56º | B59: DESEJO | C59: ROMÁRIO | D59: PETRÓPOLIS | E59: 26
A60: 57º | B60: V8 | C60: EDER | D60: TRÊS RIOS | E60: =13+13 -> 26
A61: 58º | B61: AZ DE OURO | C61: THIAGO FREITAS | D61: AREAL | E61: 25
A62: 59º | B62: MANHATTAN | C62: FABIANO | D62: MATIAS BARBOSA | E62: 25
A63: 60º | B63: PALADINO | C63: JOÃOZINHO | D63: BEMPOSTA | E63: 25
A64: 61º | B64: SADAN | C64: PABLO | D64: PETRÓPOLIS | E64: 25
A65: 62º | B65: VIDAL | C65: HENRIQUE | D65: TRÊS RIOS | E65: 24
A66: 63º | B66: FANTÁSTICO | C66: EDUARDO | D66: TRÊS RIOS | E66: =11+12 -> 23
A67: 64º | B67: PERNETA | C67: LUIZ FELIPE | D67: ? | E67: 23
A68: 65º | B68: ZORRO | C68: OTÁVIO | D68: TRÊS RIOS | E68: 22
A69: 66º | B69: ASTÚCIA | C69: EDER | D69: JUIZ DE FORA | E69: 21
A70: 67º | B70: BRT | C70: SANDRO | D70: ANTA | E70: 21
A71: 68º | B71: SOBERANO | C71: EDSON | D71: PETRÓPOLIS | E71: 21
A72: 69º | B72: TROVÃO | C72: LUCIMAR/LUIZ HENRIQUE | D72: TRÊS RIOS | E72: 21
A73: 70º | B73: URUS | C73: MÁRCIO | D73: PETRÓPOLIS | E73: 21
A74: 71º | B74: DEBOCHE | C74: ? | D74: SAPUCAIA | E74: 20
A75: 72º | B75: SEM LIMITE | C75: ROMÁRIO | D75: UBÁ | E75: 20
A76: 73º | B76: TÔ LOUCO | C76: HENRIQUE | D76: TRÊS RIOS | E76: 20
A77: 74º | B77: VEDITA | C77: JOSÉ ALVES | D77: SANTOS DUMONT | E77: 20
A78: 75º | B78: APOLLO | C78: JOSÉ ROBERTO | D78: PETRÓPOLIS | E78: 19
A79: 76º | B79: CIDADE ALERTA | C79: HIGO BATALHA | D79: TRÊS RIOS | E79: 19
A80: 77º | B80: FURIOSO | C80: EDIMAR LEITEIRO | D80: PETRÓPOLIS | E80: 19
A81: 78º | B81: GÁRGULA | C81: FERNANDO | D81: PETRÓPOLIS | E81: 19
A82: 79º | B82: MALUCO | C82: GIBA | D82: TRÊS RIOS | E82: 19
A83: 80º | B83: ? | C83: RICHARLISSON | D83: LEVY GASPARIAN | E83: 18
A84: 81º | B84: 220 VOLTS | C84: MARCELO | D84: PETRÓPOLIS | E84: 18
A85: 82º | B85: ALFA | C85: FERNANDO SIMAS | D85: PETRÓPOLIS | E85: 18
A86: 83º | B86: GARGALHADA | C86: EDINHO | D86: MATIAS BARBOSA | E86: 18
A87: 84º | B87: NOVIDADE | C87: CARLOS ALBERTO | D87: JUIZ DE FORA | E87: 18
A88: 85º | B88: BIG HIRO | C88: LÉO | D88: PETRÓPOLIS | E88: 17
A89: 86º | B89: CRUEL | C89: VITOR | D89: PETRÓPOLIS | E89: 17
A90: 87º | B90: GLOCK | C90: DOUGLAS | D90: TRÊS RIOS | E90: 17
A91: 88º | B91: PEDREIRA | C91: UILIAN | D91: TRÊS RIOS | E91: 17
A92: 89º | B92: PREDADOR | C92: JUNINHO | D92: ? | E92: 17
A93: 90º | B93: TREM BÃO | C93: MARCELO SOJUF | D93: JUIZ DE FORA | E93: 17
A94: 91º | B94: BITOLA | C94: LUCAS | D94: TRÊS RIOS | E94: 16
A95: 92º | B95: CARA PRETA | C95: FÁBIO PEREIRA | D95: TRÊS RIOS | E95: 16
A96: 93º | B96: FAIXA PRETA | C96: CLEBER | D96: TRÊS RIOS | E96: 16
A97: 94º | B97: FILHOTE | C97: LUCIANO | D97: TRÊS RIOS | E97: 16
A98: 95º | B98: PIAU | C98: ? | D98: PETRÓPOLIS | E98: 16
A99: 96º | B99: PQD | C99: CLEBER | D99: TRÊS RIOS | E99: 16
A100: 97º | B100: CANIBAL | C100: LUCIANO | D100: TRÊS RIOS | E100: 15
A101: 98º | B101: COMETA | C101: GIBA | D101: TRÊS RIOS | E101: 15
A102: 99º | B102: GREGO | C102: GABRIEL | D102: ? | E102: 15
A103: 100º | B103: JAGUNÇO | C103: NATHAN/ELLOAH | D103: LEVY GASPARIAN | E103: 15
A104: 101º | B104: LOUCO | C104: CORREIA | D104: CABO FRIO | E104: 15
A105: 102º | B105: CRONOS | C105: FABINHO | D105: TRÊS RIOS | E105: 14
A106: 103º | B106: FERA | C106: EDUARDO | D106: TRÊS RIOS | E106: 14
A107: 104º | B107: GOL DE PLACA | C107: FÁBIO BUCHECHA | D107: PETRÓPOLIS | E107: 14
A108: 105º | B108: MAMBA NEGRA | C108: EDER | D108: TRÊS RIOS | E108: 14
A109: 106º | B109: P.T. | C109: PABLO | D109: TRÊS RIOS | E109: 14
A110: 107º | B110: SABADÃO | C110: CLODOALDO | D110: TRÊS RIOS | E110: 14
A111: 108º | B111: SAFADAO | C111: CLODOALDO | D111: TRÊS RIOS | E111: 14
A112: 109º | B112: SPARTA | C112: RODRIGO TCHU | D112: PETRÓPOLIS | E112: 14
A113: 110º | B113: WALTER | C113: FÁBIO/WESLEY | D113: ? | E113: 14
A114: 111º | B114: 001 | C114: ROBSON CAMPOS | D114: PETRÓPOLIS | E114: 13
A115: 112º | B115: BARCELONA | C115: LUCAS CHAGAS | D115: PETRÓPOLIS | E115: 13
A116: 113º | B116: KING | C116: RICARDO/DANIEL | D116: ANTA | E116: 13
A117: 114º | B117: LIGEIRO | C117: TONINHO | D117: JUIZ DE FORA | E117: 13
A118: 115º | B118: MARGARINA | C118: CLÁUDIO MÁRCIO | D118: TRÊS RIOS | E118: 13
A119: 116º | B119: MATRIX | C119: DANIEL VALLE | D119: PETRÓPOLIS | E119: 13
A120: 117º | B120: TROLL | C120: MURILO | D120: TRÊS RIOS | E120: 13
A121: 118º | B121: A LENDA | C121: STENIO | D121: MATIAS BARBOSA | E121: 12
A122: 119º | B122: BAD BOY | C122: TAUAN/MARQUINHOS | D122: MAR DE ESPANHA | E122: 12
A123: 120º | B123: FAÍSCA | C123: LEHARTE | D123: TRÊS RIOS | E123: 12
A124: 121º | B124: FUMAÇA | C124: LEHARTE | D124: LEVY GASPARIAN | E124: 12
A125: 122º | B125: MALVADÃO | C125: WILIAN DOUGLAS | D125: TRÊS RIOS | E125: 12
A126: 123º | B126: MALVADÃO | C126: BRUNO BRANCO | D126: PETRÓPOLIS | E126: 12
A127: 124º | B127: MAMBA | C127: GIBA | D127: TRÊS RIOS | E127: 12
A128: 125º | B128: SENINHA | C128: MURILO NEVES | D128: AREAL | E128: 12
A129: 126º | B129: TERRORISTA | C129: JOÃO MARCOS | D129: AREAL | E129: 12
A130: 127º | B130: WOLVERINE | C130: ALCEIR | D130: PETRÓPOLIS | E130: 12
A131: 128º | B131: ZANGADO | C131: MATHEUS PASSOS | D131: TRÊS RIOS | E131: 12
A132: 129º | B132: BOA IDEIA | C132: CÉSAR MANDÍBULA | D132: PETRÓPOLIS | E132: 11
A133: 130º | B133: BORIS | C133: VALDECIR | D133: PETRÓPOLIS | E133: 11
A134: 131º | B134: CARIOCA | C134: PAULINHO | D134: TRÊS RIOS | E134: 11
A135: 132º | B135: SPIDER | C135: DAVISON | D135: TRÊS RIOS | E135: 11
A136: 133º | B136: THOR | C136: RODRIGO | D136: PETRÓPOLIS | E136: 11
A137: 134º | B137: VENOM | C137: LÉO/FERNANDO | D137: PETRÓPOLIS | E137: 11
A138: 135º
A139: 135º
A140: 136º
A141: 137º
A142: 138º
A143: 139º
A144: 140º

Sheet jan23
A1: 31/12/2022 (SÁBADO) | H1: 2023-01-08 | O1: 2023-01-15 | V1: 2023-01-22 | AC1: 2023-01-29
A2: POS. | B2: PÁSSARO | C2: PROPRIETÁRIO | D2: ORIGEM | E2: CANTOS | F2: PONTOS | H2: POS. | I2: PÁSSARO | J2: PROPRIETÁRIO | K2: ORIGEM | L2: CANTOS | M2: PONTOS | O2: POS. | P2: PÁSSARO | Q2: PROPRIETÁRIO | R2: ORIGEM | S2: CANTOS | T2: PONTOS | V2: POS. | W2: PÁSSARO | X2: PROPRIETÁRIO | Y2: ORIGEM | Z2: CANTOS | AA2: PONTOS | AC2: POS. | AD2: PÁSSARO | AE2: PROPRIETÁRIO | AF2: ORIGEM | AG2: CANTOS | AH2: PONTOS
A3: 1º | B3: PITBULL | C3: FREDERICO | D3: PETRÓPOLIS | E3: 157 | F3: 30 | H3: 1º | I3: CASCAVEL | J3: BRUNO BRANCO | K3: PETRÓPOLIS | L3: 149 | M3: 30 | O3: 1º | P3: FAIXA PRETA | Q3: PAULO HENRIQUE | R3: AREAL | S3: 133 | T3: 30 | V3: 1º | W3: NEGO | X3: MÁRCIO | Y3: TRÊS RIOS | Z3: 173 | AA3: 30 | AC3: 1º | AD3: NEGO | AE3: MÁRCIO | AF3: TRÊS RIOS | AG3: 187 | AH3: 30
A4: 2º | B4: IMPÉRIO | C4: LUIZINHO | D4: PETRÓPOLIS | E4: 156 | F4: 29 | H4: 2º | I4: IMPÉRIO | J4: LUIZINHO | K4: PETRÓPOLIS | L4: 127 | M4: 29 | O4: 2º | P4: LOBO MAL | Q4: RAFAEL LAMBARI | R4: PETRÓPOLIS | S4: 132 | T4: 29 | V4: 2º | W4: IMPÉRIO | X4: LUIZINHO | Y4: PETRÓPOLIS | Z4: 141 | AA4: 29 | AC4: 2º | AD4: DESTRUIDOR | AE4: VALDECIR | AF4: PETRÓPOLIS | AG4: 145 | AH4: 29
A5: 3º | B5: REALEZA | C5: VINÍCIUS | D5: SÃO JOSÉ | E5: 121 | F5: 28 | H5: 3º | I5: COYOTE | J5: GABRIEL | K5: MIRACEMA/TRÊS RIOS | L5: 125 | M5: 28 | O5: 3º | P5: COMETA | Q5: JOÃO MARCOS | R5: AREAL | S5: 120 | T5: 28 | V5: 3º | W5: PITBULL | X5: FREDERICO SIMAS | Y5: PETRÓPOLIS | Z5: 124 | AA5: 28 | AC5: 3º | AD5: BONES | AE5: EDIWILSON | AF5: PETRÓPOLIS | AG5: 141 | AH5: 28
A6: 4º | B6: FERA | C6: JESSÉ JÚNIOR | D6: TRÊS RIOS | E6: 120 | F6: 27 | H6: 4º | I6: TÔ LOUCO | J6: VINÍCIUS | K6: TRÊS RIOS | L6: 104 | M6: 27 | O6: 4º | P6: DIM | Q6: UELINTON | R6: TRÊS RIOS | S6: 120 | T6: 27 | V6: 4º | W6: TÔ LOUCO | X6: VINÍCIUS | Y6: TRÊS RIOS | Z6: 119 | AA6: 27 | AC6: 4º | AD6: PITBULL | AE6: FREDERICO SIMAS | AF6: PETRÓPOLIS | AG6: 140 | AH6: 27
A7: 5º | B7: VENOM | C7: MURILO | D7: TRÊS RIOS | E7: 110 | F7: 26 | H7: 5º | I7: SUPREMO | J7: JOÃOZINHO | K7: BEMPOSTA | L7: 98 | M7: 26 | O7: 5º | P7: SAGAT | Q7: HERALDO | R7: PETRÓPOLIS | S7: 106 | T7: 26 | V7: 5º | W7: VENOM | X7: MURILO | Y7: TRÊS RIOS | Z7: 113 | AA7: 26 | AC7: 5º | AD7: CARA PRETA | AE7: DIEGO | AF7: MATIAS BARBOSA | AG7: 123 | AH7: 26
A8: 6º | B8: MALUQUINHO | C8: MURILO NEVES | D8: AREAL | E8: 109 | F8: 25 | H8: 6º | I8: COMETA | J8: JOÃO MARCOS | K8: AREAL | L8: 95 | M8: 25 | O8: 6º | P8: VENOM | Q8: MURILO | R8: TRÊS RIOS | S8: 106 | T8: 25 | V8: 6º | W8: SADAN | X8: PABLO | Y8: PETRÓPOLIS | Z8: 102 | AA8: 25 | AC8: 6º | AD8: MANHATTAN | AE8: FABIANO | AF8: MATIAS BARBOSA | AG8: 119 | AH8: 25
A9: 7º | B9: DIM | C9: UELINGTON | D9: TRÊS RIOS | E9: 97 | F9: 24 | H9: 7º | I9: VIDAL | J9: HENRIQUE | K9: TRÊS RIOS | L9: 89 | M9: 24 | O9: 7º | P9: MOLEQUE JR | Q9: WELLINGTON ARGON | R9: PETRÓPOLIS | S9: 97 | T9: 24 | V9: 7º | W9: COMETA | X9: JOÃO MARCOS | Y9: AREAL | Z9: 95 | AA9: 24 | AC9: 7º | AD9: VENOM | AE9: MURILO | AF9: TRÊS RIOS | AG9: 116 | AH9: 24
A10: 8º | B10: SAGAT | C10: HERALDO | D10: PETRÓPOLIS | E10: 83 | F10: 23 | H10: 8º | I10: DIM | J10: UELINTON | K10: TRÊS RIOS | L10: 75 | M10: 23 | O10: 8º | P10: SUPREMO | Q10: JOÃOZINHO | R10: BEMPOSTA | S10: 92 | T10: 23 | V10: 8º | W10: DESTRUIDOR | X10: VALDECIR | Y10: PETRÓPOLIS | Z10: 92 | AA10: 23 | AC10: 8º | AD10: ALUCINADO | AE10: BERNARDO | AF10: ANTA | AG10: 115 | AH10: 23
A11: 9º | B11: PSG | C11: BETINHO | D11: TRÊS RIOS | E11: 83 | F11: 22 | H11: 9º | I11: CAMISA 10 | J11: JONAS | K11: TRÊS RIOS | L11: 73 | M11: 22 | O11: 9º | P11: MALUQUINHO | Q11: MURILO | R11: AREAL | S11: 92 | T11: 22 | V11: 9º | W11: TREM | X11: TAIDISON | Y11: TRÊS RIOS | Z11: 91 | AA11: 22 | AC11: 9º | AD11: PSG | AE11: BETINHO | AF11: TRÊS RIOS | AG11: 113 | AH11: 22
A12: 10º | B12: URUS | C12: MÁRCIO | D12: PETRÓPOLIS | E12: 79 | F12: 21 | H12: 10º | I12: PODEROSO CHEFINHO | J12: BRUNO BRANCO | K12: PETRÓPOLIS | L12: 64 | M12: 21 | O12: 10º | P12: BRT | Q12: SANDRO | R12: ANTA | S12: 91 | T12: 21 | V12: 10º | W12: VINTE DOIS | X12: ALISSON | Y12: TRÊS RIOS | Z12: 87 | AA12: 21 | AC12: 10º | AD12: PICA-PAU | AE12: ADÃO | AF12: TRÊS RIOS | AG12: 103 | AH12: 21
A13: 11º | B13: RD | C13: ROBSON CAMPOS | D13: PETRÓPOLIS | E13: 76 | F13: 20 | H13: 11º | I13: TREM | J13: TAIDISON | K13: TRÊS RIOS | L13: 57 | M13: 20 | O13: 11º | P13: SEDEX | Q13: NATHAN | R13: LEVY GASPARIAN | S13: 89 | T13: 20 | V13: 11º | W13: CABALA | X13: LEVI | Y13: TRÊS RIOS | Z13: 79 | AA13: 20 | AC13: 11º | AD13: IMPÉRIO | AE13: LUIZINHO | AF13: PETRÓPOLIS | AG13: 101 | AH13: 20
A14: 12º | B14: VINTE DOIS | C14: ALISSON | D14: TRÊS RIOS | E14: 72 | F14: 19 | H14: 12º | I14: GÁRGULA | J14: FERNANDO | K14: PETRÓPOLIS | L14: 54 | M14: 19 | O14: 12º | P14: FURIOSO | Q14: EDIMAR LEITEIRO | R14: PETRÓPOLIS | S14: 85 | T14: 19 | V14: 12º | W14: COYOTE | X14: GABRIEL | Y14: MIRACEMA/TRÊS RIOS | Z14: 79 | AA14: 19 | AC14: 12º | AD14: SUPREMO | AE14: JOÃOZINHO | AF14: BEMPOSTA | AG14: 91 | AH14: 19
A15: 13º | B15: ALFA | C15: FERNANDO SIMAS | D15: PETRÓPOLIS | E15: 71 | F15: 18 | H15: 13º | I15: BICHO DOIDO | J15: EDUARDO | K15: TRÊS RIOS | L15: 52 | M15: 18 | O15: 13º | P15: 220 VOLTS | Q15: MARCELO | R15: PETRÓPOLIS | S15: 84 | T15: 18 | V15: 13º | W15: ? | X15: RICHARLISSON | Y15: LEVY GASPARIAN | Z15: 76 | AA15: 18 | AC15: 13º | AD15: GARGALHADA | AE15: EDINHO | AF15: MATIAS BARBOSA | AG15: 89 | AH15: 18
A16: 14º | B16: PODEROSO CHEFINHO | C16: BRUNO BRANCO | D16: PETRÓPOLIS | E16: 65 | F16: 17 | H16: 14º | I16: FERA | J16: JESSÉ JÚNIOR | K16: TRÊS RIOS | L16: 50 | M16: 17 | O16: 14º | P16: CAMISA 10 | Q16: JONAS | R16: TRÊS RIOS | S16: 84 | T16: 17 | V16: 14º | W16: PREDADOR | X16: JUNINHO | Y16: ? | Z16: 76 | AA16: 17 | AC16: 14º | AD16: BIG HIRO | AE16: LÉO | AF16: PETRÓPOLIS | AG16: 84 | AH16: 17
A17: 15º | B17: PIAU | C17: ? | D17: PETRÓPOLIS | E17: 64 | F17: 16 | H17: 15º | I17: CARA PRETA | J17: FÁBIO PEREIRA | K17: TRÊS RIOS | L17: 42 | M17: 16 | O17: 15º | P17: RD | Q17: ROBSON CAMPOS | R17: TRÊS RIOS | S17: 80 | T17: 16 | V17: 15º | W17: BITOLA | X17: LUCAS | Y17: TRÊS RIOS | Z17: 70 | AA17: 16 | AC17: 15º | AD17: BIRO BIRO | AE17: PAULINHO | AF17: ? | AG17: 81 | AH17: 16
A18: 16º | B18: LOBO MAU | C18: RAFAEL LAMBARI | D18: PETRÓPOLIS | E18: 60 | F18: 15 | H18: 16º | I18: JAGUNÇO | J18: NATHAN | K18: LEVY GASPARIAN | L18: 41 | M18: 15 | O18: 16º | P18: GREGO | Q18: GABRIEL | R18: ? | S18: 78 | T18: 15 | V18: 16º | W18: TUBARÃO | X18: MAURO JR. | Y18: TRÊS RIOS | Z18: 64 | AA18: 15 | AC18: 16º | AD18: COMETA | AE18: JOÃO MARCOS | AF18: AREAL | AG18: 79 | AH18: 15
A19: 17º | B19: GOL DE PLACA | C19: FÁBIO BUCHECHA | D19: PETRÓPOLIS | E19: 57 | F19: 14 | H19: 17º | I19: FERA | J19: EDUARDO | K19: TRÊS RIOS | L19: 38 | M19: 14 | O19: 17º | P19: P.T. | Q19: PABLO | R19: TRÊS RIOS | S19: 73 | T19: 14 | V19: 17º | W19: MAMBA NEGRA | X19: EDER | Y19: TRÊS RIOS | Z19: 61 | AA19: 14 | AC19: 17º | AD19: COYOTE | AE19: GABRIEL | AF19: MIRACEMA/TRÊS RIOS | AG19: 78 | AH19: 14
A20: 18º | B20: MATRIX | C20: DANIEL VALLE | D20: PETRÓPOLIS | E20: 38 | F20: 13 | H20: 18º | I20: PICA-PAU | J20: ADÃO | K20: TRÊS RIOS | L20: 36 | M20: 13 | O20: 18º | P20: KING | Q20: RICARDO/DANIEL | R20: ANTA | S20: 72 | T20: 13 | V20: 18º | W20: PICA-PAU | X20: ADÃO | Y20: TRÊS RIOS | Z20: 47 | AA20: 13 | AC20: 18º | AD20: MARGARINA | AE20: CLÁUDIO MÁRCIO | AF20: TRÊS RIOS | AG20: 76 | AH20: 13
A21: 19º | B21: SENINHA | C21: MURILO NEVES | D21: AREAL | E21: 38 | F21: 12 | H21: 19º | I21: MAMBA | J21: GIBA | K21: TRÊS RIOS | L21: 30 | M21: 12 | O21: 19º | P21: TERRORISTA | Q21: JOÃO MARCOS | R21: AREAL | S21: 72 | T21: 12 | V21: 19º | W21: FAÍSCA | X21: LEHARTE | Y21: TRÊS RIOS | Z21: 46 | AA21: 12 | AC21: 19º | AD21: FUMAÇA | AE21: LEHARTE | AF21: LEVY GASPARIAN | AG21: 74 | AH21: 12
A22: 20º | B22: VENOM | C22: LÉO/FERNANDO | D22: PETRÓPOLIS | E22: 31 | F22: 11 | H22: 20º | I22: METRALHA | J22: HENRIQUE | K22: TRÊS RIOS | L22: 27 | M22: 11 | O22: 20º | P22: COYOTE | Q22: GABRIEL | R22: MIRACEMA/TRÊS RIOS | S22: 69 | T22: 11 | V22: 20º | W22: CARIOCA | X22: PAULINHO | Y22: TRÊS RIOS | Z22: 35 | AA22: 11 | AC22: 20º | AD22: BICO DE OURO | AE22: KLEBER | AF22: AREAL | AG22: 72 | AH22: 11

Sheet fev23
A1: 2023-02-05 | H1: 2023-02-12 | O1: 2023-02-19 | V1: 2023-02-26
A2: POS. | B2: PÁSSARO | C2: PROPRIETÁRIO | D2: ORIGEM | E2: CANTOS | F2: PONTOS | H2: POS. | I2: PÁSSARO | J2: PROPRIETÁRIO | K2: ORIGEM | L2: CANTOS | M2: PONTOS | O2: POS. | P2: PÁSSARO | Q2: PROPRIETÁRIO | R2: ORIGEM | S2: CANTOS | T2: PONTOS | V2: POS. | W2: PÁSSARO | X2: PROPRIETÁRIO | Y2: ORIGEM | Z2: CANTOS | AA2: PONTOS
A3: 1º | B3: SCOOBY | C3: BRUNO MUNIZ | D3: SAPUCAIA | E3: 208 | F3: 30 | H3: 1º | I3: CAPITÃO GANCHO | J3: MARCUS VINICIUS | K3: SÃO JOÃO DEL REI | L3: 169 | M3: 30 | O3: 1º | P3: CASSINO | Q3: RAFAEL | R3: NITERÓI | S3: 152 | T3: 30 | V3: 1º | W3: CABALA | X3: LEVI | Y3: TRÊS RIOS | Z3: 172 | AA3: 30
A4: 2º | B4: CABALA | C4: LEVI | D4: TRÊS RIOS | E4: 165 | F4: 29 | H4: 2º | I4: CASCAVEL | J4: BRUNO BRANCO | K4: PETRÓPOLIS | L4: 147 | M4: 29 | O4: 2º | P4: IMPÉRIO | Q4: LUIZINHO | R4: PETRÓPOLIS | S4: 145 | T4: 29 | V4: 2º | W4: CARIOQUINHA | X4: JONAS | Y4: TRÊS RIOS | Z4: 165 | AA4: 29
A5: 3º | B5: OROCHI | C5: NATHAN | D5: LEVY GASPARIAN | E5: 138 | F5: 28 | H5: 3º | I5: IMPÉRIO | J5: LUIZINHO | K5: PETRÓPOLIS | L5: 131 | M5: 28 | O5: 3º | P5: GRÃO VIZIR | Q5: GABRIEL/ALEX LAMA | R5: PARAIBA DO SUL | S5: 139 | T5: 28 | V5: 3º | W5: VENOM | X5: MURILO | Y5: TRÊS RIOS | Z5: 138 | AA5: 28
A6: 4º | B6: VINTE DOIS | C6: ALISSON | D6: TRÊS RIOS | E6: 123 | F6: 27 | H6: 4º | I6: CARIOQUINHA | J6: JONAS | K6: TRÊS RIOS | L6: 124 | M6: 27 | O6: 4º | P6: PITBULL | Q6: FREDERICO | R6: PETRÓPOLIS | S6: 125 | T6: 27 | V6: 4º | W6: PITBULL | X6: FREDERICO | Y6: PETRÓPOLIS | Z6: 136 | AA6: 27
A7: 5º | B7: RAGNAR | C7: KLEBER | D7: AREAL | E7: 113 | F7: 26 | H7: 5º | I7: DESEJO | J7: ROMÁRIO | K7: PETRÓPOLIS | L7: 114 | M7: 26 | O7: 5º | P7: CABALA | Q7: LEVI | R7: TRÊS RIOS | S7: 124 | T7: 26 | V7: 5º | W7: TORPEDO | X7: DAVISON | Y7: TRÊS RIOS | Z7: 103 | AA7: 26
A8: 6º | B8: CARIOQUINHA | C8: JONAS | D8: TRÊS RIOS | E8: 102 | F8: 25 | H8: 6º | I8: AZ DE OURO | J8: THIAGO FREITAS | K8: AREAL | L8: 114 | M8: 25 | O8: 6º | P8: LOBO MAL | Q8: RAFAEL LAMBARI | R8: PETRÓPOLIS | S8: 117 | T8: 25 | V8: 6º | W8: MULEQUE JR | X8: WELLINGTON ARGON | Y8: PETRÓPOLIS | Z8: 102 | AA8: 25
A9: 7º | B9: ALUCINADO | C9: BERNARDO | D9: ANTA | E9: 100 | F9: 24 | H9: 7º | I9: CABALA | J9: LEVI | K9: TRÊS RIOS | L9: 113 | M9: 24 | O9: 7º | P9: SR MIAGUI | Q9: NATHAN | R9: LEVY GASPARIAN | S9: 109 | T9: 24 | V9: 7º | W9: FLECHA | X9: CLODOALDO | Y9: TRÊS RIOS | Z9: 98 | AA9: 24
A10: 8º | B10: IMPÉRIO | C10: LUIZINHO | D10: PETRÓPOLIS | E10: 99 | F10: 23 | H10: 8º | I10: VENOM | J10: MURILO | K10: TRÊS RIOS | L10: 104 | M10: 23 | O10: 8º | P10: PERNETA | Q10: LUIZ FELIPE | R10: ? | S10: 105 | T10: 23 | V10: 8º | W10: KOWALSKI | X10: RICHARDSON | Y10: LEVY GASPARIAN | Z10: 95 | AA10: 23
A11: 9º | B11: PSG | C11: BETINHO | D11: TRÊS RIOS | E11: 93 | F11: 22 | H11: 9º | I11: VINTE DOIS | J11: ALISSON | K11: TRÊS RIOS | L11: 100 | M11: 22 | O11: 9º | P11: VINTE DOIS | Q11: ALISSON | R11: TRÊS RIOS | S11: 103 | T11: 22 | V11: 9º | W11: COMETA | X11: JOÃO MARCOS | Y11: AREAL | Z11: 94 | AA11: 22
A12: 10º | B12: VENOM | C12: MURILO | D12: TRÊS RIOS | E12: 79 | F12: 21 | H12: 10º | I12: PODEROSO CHEFINHO | J12: BRUNO BRANCO | K12: PETRÓPOLIS | L12: 90 | M12: 21 | O12: 10º | P12: SOBERANO | Q12: EDSON | R12: PETRÓPOLIS | S12: 102 | T12: 21 | V12: 10º | W12: VINTE DOIS | X12: ALISSON | Y12: TRÊS RIOS | Z12: 88 | AA12: 21
A13: 11º | B13: DEBOCHE | C13: ? | D13: SAPUCAIA | E13: 72 | F13: 20 | H13: 11º | I13: PICA-PAU | J13: ADÃO | K13: TRÊS RIOS | L13: 85 | M13: 20 | O13: 11º | P13: RAGNAR | Q13: KLEBER | R13: AREAL | S13: 100 | T13: 20 | V13: 11º | W13: BIRO BIRO | X13: PAULINHO | Y13: TRÊS RIOS | Z13: 83 | AA13: 20
A14: 12º | B14: APOLLO | C14: JOSÉ ROBERTO | D14: PETRÓPOLIS | E14: 71 | F14: 19 | H14: 12º | I14: SEDEX | J14: NATHAN | K14: LEVY GASPARIAN | L14: 83 | M14: 19 | O14: 12º | P14: CIDADE ALERTA | Q14: HIGO BATALHA | R14: TRÊS RIOS | S14: 91 | T14: 19 | V14: 12º | W14: TREM | X14: TAIDISON | Y14: TRÊS RIOS | Z14: 83 | AA14: 19
A15: 13º | B15: BICO DE OURO | C15: KLEBER | D15: AREAL | E15: 68 | F15: 18 | H15: 13º | I15: ALUCINADO | J15: BERNARDO | K15: ANTA | L15: 83 | M15: 18 | O15: 13º | P15: PICA-PAU | Q15: ADÃO | R15: TRÊS RIOS | S15: 90 | T15: 18 | V15: 13º | W15: SEDEX | X15: NATHAN | Y15: LEVY GASPARIAN | Z15: 82 | AA15: 18
A16: 14º | B16: GLOCK | C16: DOUGLAS | D16: TRÊS RIOS | E16: 64 | F16: 17 | H16: 14º | I16: CRUEL | J16: VITOR | K16: PETRÓPOLIS | L16: 73 | M16: 17 | O16: 14º | P16: ALUCINADO | Q16: BERNARDO | R16: ANTA | S16: 81 | T16: 17 | V16: 14º | W16: PSG | X16: BETINHO | Y16: TRÊS RIOS | Z16: 79 | AA16: 17
A17: 15º | B17: TUBARÃO | C17: MAURO JR. | D17: TRÊS RIOS | E17: 58 | F17: 16 | H17: 15º | I17: FILHOTE | J17: LUCIANO | K17: TRÊS RIOS | L17: 62 | M17: 16 | O17: 15º | P17: TALISMÃ | Q17: REGINALDO | R17: PETRÓPOLIS | S17: 78 | T17: 16 | V17: 15º | W17: GLORIOSO | X17: ISAIAS | Y17: TRÊS RIOS | Z17: 78 | AA17: 16
A18: 16º | B18: GLORIOSO | C18: ISAÍAS | D18: TRÊS RIOS | E18: 56 | F18: 15 | H18: 16º | I18: BIRO BIRO | J18: PAULINHO | K18: TRÊS RIOS | L18: 53 | M18: 15 | O18: 16º | P18: LOUCO | Q18: CORREIA | R18: CABO FRIO | S18: 76 | T18: 15 | V18: 16º | W18: COMETA | X18: GIBA | Y18: TRÊS RIOS | Z18: 74 | AA18: 15
A19: 17º | B19: SABADÃO | C19: CLODOALDO | D19: TRÊS RIOS | E19: 53 | F19: 14 | H19: 17º | I19: TUBARÃO | J19: MAURO JR. | K19: TRÊS RIOS | L19: 51 | M19: 14 | O19: 17º | P19: SAFADAO | Q19: CLODOALDO | R19: TRÊS RIOS | S19: 67 | T19: 14 | V19: 17º | W19: CRONOS | X19: FABINHO | Y19: TRÊS RIOS | Z19: 70 | AA19: 14
A20: 18º | B20: V8 | C20: EDER | D20: TRÊS RIOS | E20: 49 | F20: 13 | H20: 18º | I20: V8 | J20: EDER | K20: TRÊS RIOS | L20: 44 | M20: 13 | O20: 18º | P20: BIRO BIRO | Q20: PAULINHO | R20: TRÊS RIOS | S20: 67 | T20: 13 | V20: 18º | W20: 001 | X20: ROBSON CAMPOS | Y20: PETRÓPOLIS | Z20: 63 | AA20: 13
A21: 19º | B21: MALVADAO | C21: WILIAN DOUGLAS | D21: TRÊS RIOS | E21: 45 | F21: 12 | H21: 19º | I21: MALVADÃO | J21: BRUNO BRANCO | K21: PETRÓPOLIS | L21: 39 | M21: 12 | O21: 19º | P21: ZANGADO | Q21: MATHEUS PASSOS | R21: TRÊS RIOS | S21: 55 | T21: 12 | V21: 19º | W21: BICHO DOIDO | X21: EDUARDO | Y21: TRÊS RIOS | Z21: 53 | AA21: 12
A22: 20º | B22: PICA PAU | C22: ADÃO | D22: TRÊS RIOS | E22: 40 | F22: 11 | H22: 20º | I22: FANTÁSTICO | J22: EDUARDO | K22: TRÊS RIOS | L22: 37 | M22: 11 | O22: 20º | P22: SPIDER | Q22: DAVISON | R22: TRÊS RIOS | S22: 53 | T22: 11 | V22: 20º | W22: BORIS | X22: VALDECIR | Y22: PETRÓPOLIS | Z22: 51 | AA22: 11

Sheet mar23
A1: 2023-03-05 | H1: 2023-03-12 | O1: 2023-03-19 | V1: 2023-03-26
A2: POS. | B2: PÁSSARO | C2: PROPRIETÁRIO | D2: ORIGEM | E2: CANTOS | F2: PONTOS | H2: POS. | I2: PÁSSARO | J2: PROPRIETÁRIO | K2: ORIGEM | L2: CANTOS | M2: PONTOS | O2: POS. | P2: PÁSSARO | Q2: PROPRIETÁRIO | R2: ORIGEM | S2: CANTOS | T2: PONTOS | V2: POS. | W2: PÁSSARO | X2: PROPRIETÁRIO | Y2: ORIGEM | Z2: CANTOS | AA2: PONTOS
A3: 1º | B3: IMPÉRIO | C3: LUIZINHO | D3: PETRÓPOLIS | E3: 176 | F3: 30 | H3: 1º | I3: CARIOQUINHA | J3: JONAS | K3: TRÊS RIOS | L3: 212 | M3: 30 | O3: 1º | P3: GOKUN | Q3: MATHEUS/LUCAS | R3: JUIZ DE FORA | S3: 198 | T3: 30 | V3: 1º | W3: BONES | X3: EDI WILSON | Y3: PETRÓPOLIS | Z3: 182 | AA3: 30
A4: 2º | B4: BRASILEIRINHO | C4: GUSTAVO | D4: BEMPOSTA | E4: 140 | F4: 29 | H4: 2º | I4: AGRO | J4: REINALDO/LI | K4: BARBACENA/MG | L4: 180 | M4: 29 | O4: 2º | P4: CARIOQUINHA | Q4: JONAS | R4: TRÊS RIOS | S4: 188 | T4: 29 | V4: 2º | W4: CARIOQUINHA | X4: JONAS | Y4: TRÊS RIOS | Z4: 170 | AA4: 29
A5: 3º | B5: PITBULL | C5: FREDERICO | D5: PETRÓPOLIS | E5: 119 | F5: 28 | H5: 3º | I5: PITBULL | J5: FREDERICO | K5: PETRÓPOLIS | L5: 166 | M5: 28 | O5: 3º | P5: IMPÉRIO | Q5: LUIZINHO | R5: PETRÓPOLIS | S5: 183 | T5: 28 | V5: 3º | W5: IMPÉRIO | X5: LUIZINHO | Y5: PETRÓPOLIS | Z5: 150 | AA5: 28
A6: 4º | B6: CARIOQUINHA | C6: JONAS | D6: TRÊS RIOS | E6: 116 | F6: 27 | H6: 4º | I6: IMPÉRIO | J6: LUIZINHO | K6: PETRÓPOLIS | L6: 140 | M6: 27 | O6: 4º | P6: MAVERICK | Q6: MARCÃO | R6: JUIZ DE FORA | S6: 175 | T6: 27 | V6: 4º | W6: CARIOCA | X6: FABIANO | Y6: JUIZ DE FORA | Z6: 144 | AA6: 27
A7: 5º | B7: PICA-PAU | C7: ADÃO | D7: TRÊS RIOS | E7: 106 | F7: 26 | H7: 5º | I7: LOBO MAU | J7: RAFAEL LAMBARI | K7: PETRÓPOLIS | L7: 131 | M7: 26 | O7: 5º | P7: CARIOCA | Q7: FABIANO | R7: JUIZ DE FORA | S7: 174 | T7: 26 | V7: 5º | W7: GOKUN | X7: MATHEUS/LUCAS | Y7: JUIZ DE FORA | Z7: 143 | AA7: 26
A8: 6º | B8: PALADINO | C8: JOÃOZINHO | D8: BEMPOSTA | E8: 104 | F8: 25 | H8: 6º | I8: VENOM | J8: MURILO | K8: TRÊS RIOS | L8: 121 | M8: 25 | O8: 6º | P8: BONES | Q8: EDIWILSON | R8: PETRÓPOLIS | S8: 162 | T8: 25 | V8: 6º | W8: FAIXA PRETA | X8: PAULO HENRIQUE | Y8: PETRÓPOLIS | Z8: 142 | AA8: 25
A9: 7º | B9: CHACAL | C9: ROMÁRIO | D9: PETRÓPOLIS | E9: 99 | F9: 24 | H9: 7º | I9: BRASILEIRINHO | J9: GUSTAVO | K9: BEMPOSTA | L9: 112 | M9: 24 | O9: 7º | P9: FAIXA PRETA | Q9: PAULO HENRIQUE | R9: PETRÓPOLIS | S9: 155 | T9: 24 | V9: 7º | W9: PITBULL | X9: FREDERICO | Y9: PETRÓPOLIS | Z9: 132 | AA9: 24
A10: 8º | B10: CABALA | C10: LEVI | D10: TRÊS RIOS | E10: 98 | F10: 23 | H10: 8º | I10: TREM | J10: TAIDISON | K10: TRÊS RIOS | L10: 111 | M10: 23 | O10: 8º | P10: CHACAL | Q10: ROMÁRIO | R10: AREAL | S10: 131 | T10: 23 | V10: 8º | W10: COYOTE | X10: GABRIEL | Y10: TRÊS RIOS | Z10: 124 | AA10: 23
A11: 9º | B11: TREM | C11: TAIDISON | D11: TRÊS RIOS | E11: 88 | F11: 22 | H11: 9º | I11: ZORRO | J11: OTÁVIO | K11: TRÊS RIOS | L11: 104 | M11: 22 | O11: 9º | P11: PITBULL | Q11: FREDERICO | R11: PETRÓPOLIS | S11: 131 | T11: 22 | V11: 9º | W11: CASCAVEL | X11: BRUNO BRANCO | Y11: PETRÓPOLIS | Z11: 117 | AA11: 22
A12: 10º | B12: TALISMÃ | C12: REGINALDO | D12: PETRÓPOLIS | E12: 79 | F12: 21 | H12: 10º | I12: TROVÃO | J12: LUCIMAR/LUIZ HENRIQUE | K12: TRÊS RIOS | L12: 102 | M12: 21 | O12: 10º | P12: ASTÚCIA | Q12: EDER | R12: JUIZ DE FORA | S12: 128 | T12: 21 | V12: 10º | W12: TORPEDO | X12: DAVISON | Y12: TRÊS RIOS | Z12: 111 | AA12: 21
A13: 11º | B13: TÔ LOUCO | C13: HENRIQUE | D13: TRÊS RIOS | E13: 79 | F13: 20 | H13: 11º | I13: MITO | J13: LUIZINHO | K13: PETRÓPOLIS | L13: 98 | M13: 20 | O13: 11º | P13: SEM LIMITE | Q13: ROMÁRIO | R13: UBÁ | S13: 118 | T13: 20 | V13: 11º | W13: VEDITA | X13: JOSÉ ALVES | Y13: SANTOS DUMONT | Z13: 110 | AA13: 20
A14: 12º | B14: TORPEDO | C14: DAVISON | D14: TRÊS RIOS | E14: 77 | F14: 19 | H14: 12º | I14: TALISMÃ | J14: REGINALDO | K14: PETRÓPOLIS | L14: 98 | M14: 19 | O14: 12º | P14: SR MIAGUI | Q14: NATHAN | R14: LEVY GASPARIAN | S14: 110 | T14: 19 | V14: 12º | W14: MALUCO | X14: GIBA | Y14: TRÊS RIOS | Z14: 109 | AA14: 19
A15: 13º | B15: MITO | C15: LUIZINHO | D15: PETRÓPOLIS | E15: 75 | F15: 18 | H15: 13º | I15: SR MIAGUI | J15: NATHAN | K15: LEVY GASPARIAN | L15: 94 | M15: 18 | O15: 13º | P15: RAGNAR | Q15: KLEBER | R15: AREAL | S15: 110 | T15: 18 | V15: 13º | W15: NOVIDADE | X15: CARLOS ALBERTO | Y15: JUIZ DE FORA | Z15: 106 | AA15: 18
A16: 14º | B16: MOLEQUE JR | C16: WELLINGTON ARGON | D16: PETRÓPOLIS | E16: 71 | F16: 17 | H16: 14º | I16: PICA-PAU | J16: ADÃO | K16: TRÊS RIOS | L16: 89 | M16: 17 | O16: 14º | P16: TREM BÃO | Q16: MARCELO SOJUF | R16: JUIZ DE FORA | S16: 108 | T16: 17 | V16: 14º | W16: PEDREIRA | X16: UILIAN | Y16: TRÊS RIOS | Z16: 104 | AA16: 17
A17: 15º | B17: KOWALSKI | C17: RICHARDSON | D17: LEVY GASPARIAN | E17: 67 | F17: 16 | H17: 15º | I17: PSG | J17: BETINHO | K17: TRÊS RIOS | L17: 88 | M17: 16 | O17: 15º | P17: PQD | Q17: CLEBER | R17: TRÊS RIOS | S17: 105 | T17: 16 | V17: 15º | W17: FAIXA PRETA | X17: CLEBER | Y17: TRÊS RIOS | Z17: 102 | AA17: 16
A18: 16º | B18: CANIBAL | C18: LUCIANO | D18: TRÊS RIOS | E18: 63 | F18: 15 | H18: 16º | I18: CABALA | J18: LEVI | K18: TRÊS RIOS | L18: 83 | M18: 15 | O18: 16º | P18: PICA-PAU | Q18: ADÃO | R18: TRÊS RIOS | S18: 103 | T18: 15 | V18: 16º | W18: TALISMÃ | X18: REGINALDO | Y18: PETRÓPOLIS | Z18: 99 | AA18: 15
A19: 17º | B19: SPARTA | C19: RODRIGO TCHU | D19: PETRÓPOLIS | E19: 62 | F19: 14 | H19: 17º | I19: MALUQUINHO | J19: MURILO | K19: AREAL | L19: 72 | M19: 14 | O19: 17º | P19: TREM | Q19: TAIDISON | R19: TRÊS RIOS | S19: 95 | T19: 14 | V19: 17º | W19: WALTER | X19: FÁBIO/WESLEY | Y19: ? | Z19: 95 | AA19: 14
A20: 18º | B20: BARCELONA | C20: LUCAS CHAGAS | D20: PETRÓPOLIS | E20: 60 | F20: 13 | H20: 18º | I20: TROLL | J20: MURILO | K20: TRÊS RIOS | L20: 70 | M20: 13 | O20: 18º | P20: LIGEIRO | Q20: TONINHO | R20: JUIZ DE FORA | S20: 93 | T20: 13 | V20: 18º | W20: PSG | X20: BETINHO | Y20: TRÊS RIOS | Z20: 89 | AA20: 13
A21: 19º | B21: FANTÁSTICO | C21: EDUARDO | D21: TRÊS RIOS | E21: 55 | F21: 12 | H21: 19º | I21: WOLVERINE | J21: ALCEIR | K21: PETRÓPOLIS | L21: 65 | M21: 12 | O21: 19º | P21: A LENDA | Q21: STENIO | R21: MATIAS BARBOSA | S21: 89 | T21: 12 | V21: 19º | W21: BAD BOY | X21: TAUAN/MARQUINHOS | Y21: MAR DE ESPANHA | Z21: 88 | AA21: 12
A22: 20º | B22: FLECHA | C22: CLODOALDO | D22: TRÊS RIOS | E22: 49 | F22: 11 | H22: 20º | I22: THOR | J22: RODRIGO | K22: PETRÓPOLIS | L22: 61 | M22: 11 | O22: 20º | P22: VENOM | Q22: MURILO | R22: TRÊS RIOS | S22: 86 | T22: 11 | V22: 20º | W22: BOA IDEIA | X22: CÉSAR MANDÍBULA | Y22: PETRÓPOLIS | Z22: 86 | AA22: 11

Sheet abr23
A1: 2023-04-02 | H1: 2023-04-09 | O1: 2023-04-16 | V1: 2023-04-23 | AC1: 3023-04-30
A2: POS. | B2: PÁSSARO | C2: PROPRIETÁRIO | D2: ORIGEM | E2: CANTOS | F2: PONTOS | H2: POS. | I2: PÁSSARO | J2: PROPRIETÁRIO | K2: ORIGEM | L2: CANTOS | M2: PONTOS | O2: POS. | P2: PÁSSARO | Q2: PROPRIETÁRIO | R2: ORIGEM | S2: CANTOS | T2: PONTOS | V2: POS. | W2: PÁSSARO | X2: PROPRIETÁRIO | Y2: ORIGEM | Z2: CANTOS | AA2: PONTOS | AC2: POS. | AD2: PÁSSARO | AE2: PROPRIETÁRIO | AF2: ORIGEM | AG2: CANTOS | AH2: PONTOS
A3: 1º | F3: 30 | H3: 1º | M3: 30 | O3: 1º | T3: 30 | V3: 1º | AA3: 30 | AC3: 1º | AH3: 30
A4: 2º | F4: 29 | H4: 2º | M4: 29 | O4: 2º | T4: 29 | V4: 2º | AA4: 29 | AC4: 2º | AH4: 29
A5: 3º | F5: 28 | H5: 3º | M5: 28 | O5: 3º | T5: 28 | V5: 3º | AA5: 28 | AC5: 3º | AH5: 28
A6: 4º | F6: 27 | H6: 4º | M6: 27 | O6: 4º | T6: 27 | V6: 4º | AA6: 27 | AC6: 4º | AH6: 27
A7: 5º | F7: 26 | H7: 5º | M7: 26 | O7: 5º | T7: 26 | V7: 5º | AA7: 26 | AC7: 5º | AH7: 26
A8: 6º | F8: 25 | H8: 6º | M8: 25 | O8: 6º | T8: 25 | V8: 6º | AA8: 25 | AC8: 6º | AH8: 25
A9: 7º | F9: 24 | H9: 7º | M9: 24 | O9: 7º | T9: 24 | V9: 7º | AA9: 24 | AC9: 7º | AH9: 24
A10: 8º | F10: 23 | H10: 8º | M10: 23 | O10: 8º | T10: 23 | V10: 8º | AA10: 23 | AC10: 8º | AH10: 23
A11: 9º | F11: 22 | H11: 9º | M11: 22 | O11: 9º | T11: 22 | V11: 9º | AA11: 22 | AC11: 9º | AH11: 22
A12: 10º | F12: 21 | H12: 10º | M12: 21 | O12: 10º | T12: 21 | V12: 10º | AA12: 21 | AC12: 10º | AH12: 21
A13: 11º | F13: 20 | H13: 11º | M13: 20 | O13: 11º | T13: 20 | V13: 11º | AA13: 20 | AC13: 11º | AH13: 20
A14: 12º | F14: 19 | H14: 12º | M14: 19 | O14: 12º | T14: 19 | V14: 12º | AA14: 19 | AC14: 12º | AH14: 19
A15: 13º | F15: 18 | H15: 13º | M15: 18 | O15: 13º | T15: 18 | V15: 13º | AA15: 18 | AC15: 13º | AH15: 18
A16: 14º | F16: 17 | H16: 14º | M16: 17 | O16: 14º | T16: 17 | V16: 14º | AA16: 17 | AC16: 14º | AH16: 17
A17: 15º | F17: 16 | H17: 15º | M17: 16 | O17: 15º | T17: 16 | V17: 15º | AA17: 16 | AC17: 15º | AH17: 16
A18: 16º | F18: 15 | H18: 16º | M18: 15 | O18: 16º | T18: 15 | V18: 16º | AA18: 15 | AC18: 16º | AH18: 15
A19: 17º | F19: 14 | H19: 17º | M19: 14 | O19: 17º | T19: 14 | V19: 17º | AA19: 14 | AC19: 17º | AH19: 14
A20: 18º | F20: 13 | H20: 18º | M20: 13 | O20: 18º | T20: 13 | V20: 18º | AA20: 13 | AC20: 18º | AH20: 13
A21: 19º | F21: 12 | H21: 19º | M21: 12 | O21: 19º | T21: 12 | V21: 19º | AA21: 12 | AC21: 19º | AH21: 12
A22: 20º | F22: 11 | H22: 20º | M22: 11 | O22: 20º | T22: 11 | V22: 20º | AA22: 11 | AC22: 20º | AH22: 11
